[Event "5th Schach960-Festival 2024"]
[Site "Berlin"]
[Date "2024.02.09"]
[Round "1.8"]
[White "Orlov, Andrey"]
[Black "Bartelt, Max Peter"]
[Result "1-0"]
[WhiteElo "2487"]
[BlackElo "2059"]
[Annotator "TA"]
[PlyCount "110"]
[EventDate "2024.02.08"]
[EventCountry "GER"]
[SourceTitle "playchess.com"]
[Source "ChessBase"]
[SourceQuality "1"]
[TimeControl "1500+30"]

{[%evp 9,18,7,15,0,11,32767,6,32767,8,32767,13]} 1. d4 {[%emt 0:00:00]} Nf6 {[%emt 0:00:00]} 2. c4 {[%emt 0:00:00]} e6 {[%emt 0:00:00]} 3. Nf3 {[%emt 0:00:00]} d5 {[%emt 0:00:00]} 4. e3 {[%emt 0:00:00]} b6 {[%emt 0:00:00]} 5. b3 {[%emt 0:00:00]} Bb7 {[%emt 0:00:00]} 6. Bd3 {[%emt 0:00:00]} Bd6 {[%emt 0:00:00]} 7. O-O {[%emt 0:00:00]} O-O {[%emt 0:00:00]} 8. cxd5 {[%emt 0:00:00] The position is equal.} exd5 {[%emt 0:00:00]} 9. Ba3 {[%emt 0:00:00]} c5 {[%emt 0:00:00]} 10. dxc5 {[%emt 0:00:00]} bxc5 {[%emt 0:00:00] ?ev?.} 11. Nc3 {[%emt 0:00:00]} Nbd7 {[%emt 0:00:00]} 12. Rc1 {[%emt 0:00:00]} Re8 {[%emt 0:00:00]} 13. Re1 {[%emt 0:00:00]} Rc8 {[%emt 0:00:00]} 14. Bf5 {[%emt 0:00:00]} Qe7 {[%emt 0:00:00]} 15. g3 {[%emt 0:00:00]} Rcd8 {[%emt 0:00:00]} 16. Bh3 {[%emt 0:00:00]} a6 {[%emt 0:00:00]} 17. Bg2 {[%emt 0:00:00]} Nf8 {[%emt 0:00:00]} 18. Na4 {[%emt 0:07:41]} Ne6 {[%emt 0:00:00]} 19. Qc2 {[%emt 0:02:09]} d4 {[%emt 0:05:56]} 20. Rcd1 {[%emt 0:09:36]} Be4 {[%emt 0:02:23]} 21. Qe2 {[%emt 0:01:57]} d3 {[%emt 0:03:20]} 22. Qf1 {[%emt 0:00:07]} Bxf3 {[%emt 0:03:44]} 23. Bxf3 {[%emt 0:00:04]} c4 {[%emt 0:00:05]} 24. Bxd6 {[%emt 0:04:40]} Qxd6 {[%emt 0:00:06]} 25. bxc4 {[%emt 0:03:34]} Ng5 {[%emt 0:01:16]} 26. Qg2 {[%emt 0:03:23]} Nxf3+ {[%emt 0:03:53]} 27. Qxf3 {[%emt 0:00:02]} Qb4 {[%emt 0:00:06]} 28. Qc6 {[%emt 0:02:41]} Rc8 {[%emt 0:02:11]} 29. Qxa6 {[%emt 0:00:21]} Ra8 {[%emt 0:02:41]} 30. Qb5 {[%emt 0:00:11]} Qxa4 {[%emt 0:01:31]} 31. Rxd3 {[%emt 0:00:38]} Qxa2 {[%emt 0:00:26]} 32. Rb1 {[%emt 0:00:05][%cal Be1b1,Bb1b2,Bb2b7,Bb7a7][%mdl 32]} Rac8 {[%emt 0:02:05]} 33. Rd4 {[%emt 0:00:27]} Ne4 {[%emt 0:02:34]} 34. Rb2 {[%emt 0:00:10]} Qa8 {[%emt 0:00:46]} 35. Qb7 {[%emt 0:00:52]} Qxb7 {[%emt 0:02:08]} 36. Rxb7 {[%emt 0:00:03]} Nc5 {[%emt 0:00:05]} 37. Ra7 {[%emt 0:00:07]} Ne6 {[%emt 0:01:08]} 38. Re4 {[%emt 0:00:13]} Rc5 {[%emt 0:00:55]} 39. g4 {[%emt 0:00:34]} Rec8 {[%emt 0:00:46]} 40. f4 {[%emt 0:00:06]} g6 {[%emt 0:03:44]} 41. Ra4 {[%emt 0:00:36]} Rg5 {[%emt 0:00:00]} 42. fxg5 {[%emt 0:00:00]} Nc5 {[%emt 0:00:00]} 43. Rd4 {[%emt 0:00:00]} Nxa4 {[%emt 0:00:00]} 44. Kf2 {[%emt 0:00:00]} Nc5 {[%emt 0:00:00]} 45. h4 {[%emt 0:00:00]} Ne6 {[%emt 0:00:00]} 46. Re4 {[%emt 0:00:00]} Rc5 {[%emt 0:00:00]} 47. Ke2 {[%emt 0:00:00]} Kf8 {[%emt 0:00:00]} 48. Kd2 {[%emt 0:00:00]} Ke7 {[%emt 0:00:00]} 49. Kc3 {[%emt 0:00:00]} Kd6 {[%emt 0:00:00]} 50. Kb4 {[%emt 0:00:00]} Rc7 {[%emt 0:00:00]} 51. Kc3 {[%emt 0:00:00]} Rc8 {[%emt 0:00:00]} 52. Kb4 {[%emt 0:00:00]} Rb8+ {[%emt 0:00:00]} 53. Kc3 {[%emt 0:00:00]} Rb1 {[%emt 0:00:00]} 54. h5 {[%emt 0:00:00]} Rh1 {[%emt 0:00:00]} 55. Kb4 {[%emt 0:00:00]} gxh5 {[%emt 0:00:00] Black got outplayed after the opening.   OK:         	---       	Black=1} 1-0

[Event "5th Schach960-Festival 2024"]
[Site "Berlin"]
[Date "2024.02.09"]
[Round "1.9"]
[White "Maniocha, Andrzej"]
[Black "Shchekachev, Andrei"]
[Result "0-1"]
[ECO "C92"]
[WhiteElo "2066"]
[BlackElo "2506"]
[Annotator "TA"]
[PlyCount "79"]
[EventDate "2024.02.08"]
[EventCountry "GER"]
[SourceTitle "playchess.com"]
[Source "ChessBase"]
[SourceQuality "1"]
[TimeControl "1500+30"]

{[%evp 24,79,18,31,39,34,33,27,39,19,14,8,10,0,0,0,12,0,3,2,20,0,47,18,19,-27,-29,-54,-57,-143,354,373,363,366,372,389,379,375,477,468,477,481,489,500,505,502,487,486,503,494,605,563,589,584,576,548,770,778]} 1. e4 {[%emt 0:00:00]} e5 {[%emt 0:00:00]} 2. Nf3 {[%emt 0:00:00]} Nc6 {[%emt 0:00:00]} 3. Bb5 {[%emt 0:00:00][%cal Bf1b5,Bb5a4,Ba4b3][%mdl 32]} a6 {[%emt 0:00:00]} 4. Ba4 {[%emt 0:00:00]} Nf6 {[%emt 0:00:00]} 5. O-O {[%emt 0:00:00]} Be7 {[%emt 0:00:00]} 6. Re1 {[%emt 0:00:00]} b5 {[%emt 0:00:00]} 7. Bb3 {[%emt 0:00:00]} d6 {[%emt 0:00:00]} 8. c3 {[%emt 0:00:00]} O-O {[%emt 0:00:00]} 9. h3 {[%emt 0:00:00]} Bb7 {[%emt 0:00:00]} 10. d4 {[%emt 0:00:00]} Re8 {[%emt 0:00:00]} 11. Ng5 {[%emt 0:00:00]} Rf8 {[%emt 0:00:00]} 12. Nf3 {[%emt 0:00:00]} Re8 {[%emt 0:00:00]} 13. Nbd2 {[%emt 0:00:00]} exd4 {[%emt 0:00:00]} 14. cxd4 {[%emt 0:00:00]} Nd7 {[%emt 0:00:00]} 15. Nf1 {[%emt 0:00:00]} Na5 {[%emt 0:00:00] White has an edge.} 16. Bc2 {[%emt 0:00:00]} Bf6 {[%emt 0:00:00]} 17. N1h2 {[%emt 0:00:00]} c5 {[%emt 0:00:00]} 18. d5 {[%emt 0:00:00]} Nc4 {[%emt 0:00:00]} 19. Rb1 {[%emt 0:00:00]} Nde5 {[%emt 0:00:00]} 20. Nxe5 {[%emt 0:00:00]} Nxe5 {[%emt 0:00:00]} 21. f4 {[%emt 0:00:00]} Ng6 {[%emt 0:00:00]} 22. Be3 {[%emt 0:00:00]} Bc8 {[%emt 0:00:00]} (22... Bh4 $11) 23. Qh5 {[%emt 0:00:00]} Bd7 {[%emt 0:00:00]} 24. Ng4 {[%emt 0:05:45]} (24. Nf3 {is more appropriate.} Nh4 25. Nd2 (25. Nxh4 Bxh4 26. Rf1 Bf6 $11)) 24... Bxg4 $11 {[%emt 0:00:00]} 25. hxg4 {[%emt 0:04:11]} Qa5 $1 {[%emt 0:00:00]} 26. Rf1 {[%emt 0:15:34] [#]} (26. g5 $15 Bxb2 27. e5 dxe5 (27... Qxa2 28. Qd1 $17) 28. f5) 26... Bxb2 $2 {[%emt 0:00:00][%mdl 8192] A mistake that costs the game.} 27. Rxb2 $18 {[%emt 0:04:17]} Qc3 {[%emt 0:00:00]} 28. Bc1 {[%emt 0:00:10]} Qd4+ {[%emt 0:00:00]} 29. Kh2 {[%emt 0:01:41]} c4 {[%emt 0:00:00][%cal Bc5c4,Bc4c3][%mdl 32]} 30. Qh3 {[%emt 0:02:40]} c3 {[%emt 0:00:00]} 31. Rb3 {[%emt 0:02:28] White is clearly winning.} ({Not} 31. Be3 Qc4 32. Rbb1 a5 $18) 31... b4 {[%emt 0:00:00]} 32. Qe3 {[%emt 0:02:12]} Qc5 {[%emt 0:00:00]} 33. Qxc5 {[%emt 0:01:01]} dxc5 {[%emt 0:00:00]} 34. Be3 {[%emt 0:00:10]} Rec8 {[%emt 0:00:00]} 35. Rbb1 {[%emt 0:00:44][%cal Bb3b1,Bb1d1,Bd1d5,Bd5c5][%mdl 32]} a5 {[%emt 0:00:00]} 36. Ba4 {[%emt 0:00:05]} Ra7 {[%emt 0:00:00]} 37. d6 {[%emt 0:00:10]} Nf8 {[%emt 0:00:00][%cal Bg6f8,Bf8d7,Bd7f6][%mdl 32]} 38. Rbd1 {[%emt 0:00:27]} Nd7 {[%emt 0:00:00]} 39. Rd5 {[%emt 0:01:49]} Nf6 {[%emt 0:00:00]} 40. Rxc5 {[%emt 0:01:21][%mdl 32768] Weighted Error Value: White=0.08 (flawless) /Black=0.30.  Loses game:     	---       	Black=1      Mistake:       	White=2     	Black=1      Inaccurate:     	White=1     	Black=1      OK:         	White=16    	Black=12     Best:        	---       	Black=1      Strong:       	---       	Black=1     . Loss on time!?} 0-1

[Event "5th Schach960-Festival 2024"]
[Site "Berlin"]
[Date "2024.02.09"]
[Round "1.10"]
[White "Chatalbashev, Boris"]
[Black "Federau, Juergen"]
[Result "1-0"]
[WhiteElo "2457"]
[BlackElo "2124"]
[Annotator "RC"]
[PlyCount "68"]
[EventDate "2024.02.08"]
[EventCountry "GER"]
[SourceTitle "playchess.com"]
[Source "ChessBase"]
[SourceQuality "1"]
[TimeControl "1500+30"]

1. d4 {[%emt 0:00:00]} Nf6 {[%emt 0:00:00]} 2. c4 {[%emt 0:00:00]} e6 {[%emt 0:00:00]} 3. Nf3 {[%emt 0:00:00]} d5 {[%emt 0:00:00]} 4. Bg5 {[%emt 0:00:00]} dxc4 {[%emt 0:00:00]} 5. Qa4+ {[%emt 0:00:00]} Nbd7 {[%emt 0:00:00]} 6. Nc3 {[%emt 0:00:00]} a6 {[%emt 0:00:00]} 7. g3 {[%emt 0:00:00]} Be7 {[%emt 0:00:00]} 8. Bxf6 {[%emt 0:00:00]} gxf6 {[%emt 0:00:00]} 9. Bg2 {[%emt 0:00:00]} b5 {[%emt 0:00:00]} 10. Qc2 {[%emt 0:00:00]} c6 {[%emt 0:00:00]} 11. O-O {[%emt 0:00:00]} Bb7 {[%emt 0:00:00]} 12. e4 {[%emt 0:00:00]} Qc7 {[%emt 0:00:00]} 13. Rfd1 {[%emt 0:02:25]} O-O-O {[%emt 0:00:00]} 14. a4 {[%emt 0:03:00]} Kb8 {[%emt 0:00:00]} 15. d5 {[%emt 0:10:40]} Bc5 {[%emt 0:00:00]} 16. dxc6 {[%emt 0:04:50]} Qxc6 {[%emt 0:00:00]} 17. axb5 {[%emt 0:00:13]} axb5 {[%emt 0:00:00]} 18. Ra5 {[%emt 0:04:53]} b4 {[%emt 0:14:30]} 19. Na4 {[%emt 0:00:22]} Bb6 {[%emt 0:07:32]} 20. Nd4 {[%emt 0:01:58]} Bxd4 {[%emt 0:01:46]} 21. Rxd4 {[%emt 0:00:02]} Nb6 {[%emt 0:00:34]} 22. Rxd8+ {[%emt 0:01:33]} Rxd8 {[%emt 0:00:04]} 23. Nc5 {[%emt 0:00:05]} Qd6 {[%emt 0:01:08]} 24. Bf3 {[%emt 0:03:21]} Qd2 {[%emt 0:05:01]} 25. Qxd2 {[%emt 0:02:17]} Rxd2 {[%emt 0:00:04]} 26. Rb5 {[%emt 0:00:11]} c3 {[%emt 0:05:21]} 27. bxc3 {[%emt 0:00:06]} bxc3 {[%emt 0:00:05]} 28. Rxb6 {[%emt 0:00:07]} Rb2 {[%emt 0:00:04]} 29. Nb3 {[%emt 0:02:51]} e5 {[%emt 0:01:15]} 30. Rb4 {[%emt 0:00:55]} c2 {[%emt 0:00:13]} 31. Rc4 {[%emt 0:00:26]} Rxb3 {[%emt 0:00:55]} 32. Kg2 {[%emt 0:00:02]} Rb2 {[%emt 0:00:09]} 33. Rc3 {[%emt 0:00:51]} Ba6 {[%emt 0:00:44]} 34. Bh5 {[%emt 0:00:41]} Bd3 {[%emt 0:00:14]} 1-0

[Event "5th Schach960-Festival 2024"]
[Site "Berlin"]
[Date "2024.02.09"]
[Round "2.1"]
[White "Bluebaum, Matthias"]
[Black "Zatonskih, Anna"]
[Result "1/2-1/2"]
[ECO "C20"]
[WhiteElo "2655"]
[BlackElo "2347"]
[Annotator "TA"]
[PlyCount "24"]
[EventDate "2024.02.08"]
[EventCountry "GER"]
[SourceTitle "playchess.com"]
[Source "ChessBase"]
[SourceQuality "1"]
[TimeControl "1500+30"]

{[%evp 9,24,-158,16,-224,110,-210,101,-141,67,-275,15,-167,79,-318,-173,-297,71]} 1. e4 {[%emt 0:00:21]} e5 {[%emt 0:02:46]} 2. g3 {[%emt 0:01:58]} a5 {[%emt 0:04:37]} 3. f4 {[%emt 0:02:45]} a4 {[%emt 0:15:22]} 4. Bg2 {[%emt 0:14:16]} d6 {[%emt 0:01:58]} 5. g4 {[%emt 0:06:08]} g5 $2 {[%emt 0:00:00] [#]} ({Black should play} 5... Qh4+ $17 6. Kf1 Bxg4 (6... Qxg4 7. Qxg4 Bxg4 8. Ne2 $17)) 6. Na3 $2 {[%emt 0:01:05]} (6. f5 $11) 6... Ke7 $2 {[%emt 0:01:21]} (6... exf4 7. d4 $17) (6... gxf4 $19 {Strongly threatening ...Qh4+.} 7. h4 h6) 7. Ke2 $2 {[%emt 0:00:00][%mdl 8192]} (7. fxg5 $16 {and life is bright. Threatens to win with h3.} Nc6 8. h3) 7... Kf6 $2 {[%emt 0:00:00]} (7... Bxg4+ 8. Bf3 Bxf3+ 9. Nxf3) (7... gxf4 $19 8. Bf3 Nc6) 8. Kd3 $2 {[%emt 0:00:26]} (8. f5 $16 {stays on course.}) 8... c5 $2 {[%emt 0:00:24]} (8... gxf4 $17 {And now ...Kg7 would win.} 9. c3 d5 (9... h5 10. gxh5 Ke7 11. Kc2 $17)) 9. Kc3 $2 {[%emt 0:00:59][%mdl 8192] [#]} (9. fxg5+ $14 {keeps the upper hand.} Kg7 10. c3) 9... Ra7 $2 {[%emt 0:00:49]} (9... gxf4 10. b3 $17) (9... exf4 $19 {[%cal Ob7b5] ...b5! would now be deadly.} 10. h4 b5) 10. Kd3 $2 {[%emt 0:00:22]} (10. fxg5+ $11 Kg7 11. b3) 10... Ra8 $2 {[%emt 0:00:00]} (10... exf4 11. h4 $15) (10... c4+ $19 11. Nxc4 gxf4) 11. Kc4 $2 {[%emt 0:00:00][%mdl 8192]} (11. fxg5+ $16 Kg7 12. Nc4) 11... Kg7 {[%emt 0:00:00]} ({Don't play} 11... gxf4 12. Kd3 $19) (11... exf4 $142 12. h4 Kg7 13. hxg5 Nc6 (13... Qxg5 14. Nf3 $17)) 12. Kd3 {[%emt 0:00:00]} (12. f5 {might work better.}) 12... Kf6 $2 {[%emt 0:00:00] Weighted Error Value: White=2.53/Black=2.39.  Loses game:     	White=4     	---        Missed win:     	---       	Black=5      Mistake:       	White=2     	Black=2} ({Don't do} 12... gxf4 13. c3 $19) ({Better is} 12... exf4 $19 13. h4 Nc6 (13... gxh4 14. c3 $17)) 1/2-1/2

[Event "5th Schach960-Festival 2024"]
[Site "Berlin"]
[Date "2024.02.09"]
[Round "2.3"]
[White "Fedorchuk, Sergey A."]
[Black "Paulsen, Dirk"]
[Result "1-0"]
[WhiteElo "2550"]
[BlackElo "2293"]
[Annotator "TA"]
[PlyCount "16"]
[EventDate "2024.02.08"]
[EventCountry "GER"]
[SourceTitle "playchess.com"]
[Source "ChessBase"]
[SourceQuality "1"]
[TimeControl "1500+30"]

{[%evp 9,16,-93,43,-39,105,-14,133,0,111]} 1. f4 {[%emt 0:00:08]} f6 {[%emt 0:00:00]} 2. Nc3 {[%emt 0:01:34]} e5 {[%emt 0:01:15]} 3. g3 {[%emt 0:00:36]} d5 {[%emt 0:01:50]} 4. fxe5 {[%emt 0:01:58]} fxe5 {[%emt 0:00:04]} 5. Bh3 {[%emt 0:00:09]} Bd7 {[%emt 0:01:17]} (5... Nf6 $17 {White must now prevent ...Bc5.} 6. Bg2 Bc5) 6. Bxd7+ {[%emt 0:00:12]} (6. Nxd5 $2 {loses.} Bxh3 7. Nxc7+ Qxc7 $19) (6. e4 $14 Nf6 7. Nxd5 (7. exd5 Bc5 $15)) 6... Kxd7 {[%emt 0:03:00]} (6... Qxd7 $15 {keeps the upper hand.} 7. e4 d4 8. Qh5+ Kd8) 7. a4 {[%emt 0:04:51]} ({White should try} 7. d4 $16) 7... e4 {[%emt 0:11:10] [#]} (7... Nf6 $11 {keeps the balance.}) 8. a5 {[%emt 0:01:41]} ({Don't take} 8. Nxd5 $6 Kc8 9. Nf4 g5 $14) (8. d3 $1 $16) 8... Na6 {[%emt 0:00:00] Black did not feel at home in the position after the opening.   Weighted Error Value: White=1.10/Black=1.42.  Mistake:       	White=2     	Black=3} (8... Kc8 $11) 1-0

[Event "5th Schach960-Festival 2024"]
[Site "Berlin"]
[Date "2024.02.09"]
[Round "2.5"]
[White "Fridman, Daniel"]
[Black "Modler, Andreas"]
[Result "1-0"]
[ECO "A00"]
[WhiteElo "2588"]
[BlackElo "2232"]
[Annotator "TA"]
[PlyCount "24"]
[EventDate "2024.02.08"]
[EventCountry "GER"]
[SourceTitle "playchess.com"]
[Source "ChessBase"]
[SourceQuality "1"]
[TimeControl "1500+30"]

{[%evp 9,24,-143,-87,-103,-120,-501,-162,-758,-233,-696,-495,-1074,-913,-1724,-839,-971,-679]} 1. Nc3 {[%emt 0:00:02]} Nc6 {[%emt 0:00:14]} 2. f4 {[%emt 0:00:03]} f5 {[%emt 0:00:51]} 3. g4 {[%emt 0:00:02]} g6 {[%emt 0:03:44]} 4. Bh3 {[%emt 0:01:30]} fxg4 {[%emt 0:04:25]} 5. Bxg4 {[%emt 0:00:03] [#]} Bg7 {[%emt 0:03:23]} (5... e5 $142 $1 {...Qh4+ is the strong threat.} 6. h4 Nh6 (6... exf4 7. d4 $11)) 6. e4 {[%emt 0:00:51]} e5 {[%emt 0:01:54]} 7. fxe5 $2 {[%emt 0:01:08][%mdl 8192]} (7. h4 $17 {is more resistant.}) 7... Nxe5 $2 {[%emt 0:00:18]} (7... Qh4+ 8. Kf1 Nh6 (8... Bxe5 $2 9. h3 $19)) 8. Nb5 $2 {[%emt 0:00:06]} (8. h4) 8... Nc6 $2 {[%emt 0:04:11]} (8... Qh4+ 9. Kf1 Nxg4 (9... Qxg4 10. Nxc7+ Kd8 11. Qxg4 $17)) 9. Nxa7 $2 {[%emt 0:06:54]} (9. h4 Nf6 10. d4) 9... Nxa7 {[%emt 0:00:00] Black is clearly winning.} 10. Be6 {[%emt 0:01:08]} (10. h4 $142 d5 11. d3) 10... dxe6 {[%emt 0:00:00]} 11. e5 {[%emt 0:07:18]} Bf8 {[%emt 0:09:13] [#] aiming for ...Qh4+.} 12. d4 {[%emt 0:01:12]} Ba3 {[%emt 0:00:00][%mdl 32768] White did not feel at home in the position after the opening.   Weighted Error Value: White=3.18/Black=2.32.  Loses game:     	White=1     	---        Mistake:       	White=3     	Black=2      Inaccurate:     	White=1     	---        OK:         	---       	Black=1     . Loss on time!?} 1-0

[Event "5th Schach960-Festival 2024"]
[Site "Berlin"]
[Date "2024.02.09"]
[Round "2.6"]
[White "Kracht, Raphael"]
[Black "Kunin, Vitaly"]
[Result "0-1"]
[WhiteElo "2144"]
[BlackElo "2521"]
[Annotator "TA"]
[PlyCount "18"]
[EventDate "2024.02.08"]
[EventCountry "GER"]
[SourceTitle "playchess.com"]
[Source "ChessBase"]
[SourceQuality "1"]
[TimeControl "1500+30"]

{[%evp 9,18,-14,192,100,218,157,158,122,168,-234,-246]} 1. Nc3 {[%emt 0:03:29]} d6 {[%emt 0:01:18]} 2. d4 {[%emt 0:00:50]} g6 {[%emt 0:01:04]} 3. g4 {[%emt 0:02:03]} Bd7 {[%emt 0:04:15]} 4. Bd2 {[%emt 0:02:07]} b5 {[%emt 0:01:14]} 5. h3 {[%emt 0:02:11] [#]} g5 $2 {[%emt 0:02:55]} 6. h4 {[%emt 0:02:07]} ({White should play} 6. Bxg5 $18 {e3 would now be deadly.} Bg7 7. Nf3) 6... Bh6 {[%emt 0:04:37]} (6... gxh4 $16 {keeps fighting.} 7. g5 (7. Rxh4 b4 $11) 7... Bg7) 7. d5 {[%emt 0:08:12]} ({Don't take} 7. Bxg5 Bg7) 7... e6 {[%emt 0:05:43]} 8. f3 {[%emt 0:03:38]} a5 {[%emt 0:05:44] [#]} (8... Bg7 $16 {is a better defense.}) 9. Na4 $4 {[%emt 0:03:26][%mdl 8192]} bxa4 {[%emt 0:00:00] Weighted Error Value: White=1.86/Black=1.09.  Missed win:     	White=1     	---        Mistake:       	---       	Black=2      Best:        	---       	Black=1} 0-1

[Event "5th Schach960-Festival 2024"]
[Site "Berlin"]
[Date "2024.02.09"]
[Round "2.7"]
[White "Van den Doel, Erik"]
[Black "Loew, Gerald"]
[Result "1/2-1/2"]
[WhiteElo "2551"]
[BlackElo "2167"]
[Annotator "TA"]
[PlyCount "19"]
[EventDate "2024.02.08"]
[EventCountry "GER"]
[SourceTitle "playchess.com"]
[Source "ChessBase"]
[SourceQuality "1"]
[TimeControl "1500+30"]

{[%evp 9,19,-14,118,-111,-45,-43,111,-6,72,-142,-3,-152]} 1. f4 {[%emt 0:00:06]} f5 {[%emt 0:01:33]} 2. Nc3 {[%emt 0:00:45]} Nc6 {[%emt 0:00:35]} 3. g3 {[%emt 0:02:53]} e5 {[%emt 0:02:20]} 4. fxe5 {[%emt 0:03:32]} Nxe5 {[%emt 0:01:37]} 5. Bg2 {[%emt 0:04:25] [#]} d5 {[%emt 0:16:23]} 6. Nb5 $2 {[%emt 0:07:58]} ({Don't take} 6. Bxd5 Nf6 7. Bg2 c6 $14) (6. Nxd5 c6 $14) (6. d4 $16) 6... Qd7 {[%emt 0:00:58]} (6... c6 $17 7. Nd4 f4) 7. a4 $15 {[%emt 0:00:27]} c5 $2 {[%emt 0:01:54]} (7... c6 $15 8. Nd4 f4) 8. b3 {[%emt 0:02:25]} (8. d4 $16 Ng6 9. dxc5) 8... d4 {[%emt 0:00:00]} (8... a6 $11 9. Bb2 Ng4 (9... axb5 10. Bxe5 d4 11. axb5 $16)) 9. c4 $2 {[%emt 0:04:39] [#]} (9. e3 $16 {keeps the pressure on.}) 9... Qe7 {[%emt 0:01:27]} ({Better is} 9... a6 $17 10. Na3 Bd6) 10. Ra2 {[%emt 0:00:59] Weighted Error Value: White=1.55/Black=1.19.  Mistake:       	White=3     	Black=4      OK:         	White=1     	---} (10. Ba3 $11 {keeps the balance.}) 1/2-1/2

[Event "5th Schach960-Festival 2024"]
[Site "Berlin"]
[Date "2024.02.09"]
[Round "2.9"]
[White "Shchekachev, Andrei"]
[Black "Quilter, Thomas A"]
[Result "1-0"]
[WhiteElo "2506"]
[BlackElo "2162"]
[Annotator "TA"]
[PlyCount "14"]
[EventDate "2024.02.08"]
[EventCountry "GER"]
[SourceTitle "playchess.com"]
[Source "ChessBase"]
[SourceQuality "1"]
[TimeControl "1500+30"]

{[%evp 9,14,67,92,24,1035,-786,79]} 1. f4 {[%emt 0:00:38]} f5 {[%emt 0:04:49]} 2. Nc3 {[%emt 0:01:39]} Nc6 {[%emt 0:00:20]} 3. g3 {[%emt 0:00:58]} g5 {[%emt 0:01:07]} 4. Bg2 {[%emt 0:00:54]} Bh6 {[%emt 0:04:40]} 5. Bxc6 {[%emt 0:03:52]} dxc6 {[%emt 0:09:27]} 6. d3 {[%emt 0:05:17]} (6. e4 $16) 6... Qd5 $2 {[%emt 0:07:06][%mdl 8192] [#]} 7. b3 $4 {[%emt 0:14:53][%mdl 8192]} (7. Nxd5 $18 cxd5 8. fxg5) 7... Qf7 $2 {[%emt 0:00:00] Loses game:     	---       	Black=1      Missed win:     	White=1     	Black=1} ({Better is} 7... Qxh1 $19 8. Be3 Qxh2) 1-0

[Event "5th Schach960-Festival 2024"]
[Site "Berlin"]
[Date "2024.02.09"]
[Round "2.10"]
[White "Elier, Ali"]
[Black "Chatalbashev, Boris"]
[Result "0-1"]
[WhiteElo "2181"]
[BlackElo "2457"]
[Annotator "TA"]
[PlyCount "19"]
[EventDate "2024.02.08"]
[EventCountry "GER"]
[SourceTitle "playchess.com"]
[Source "ChessBase"]
[SourceQuality "1"]
[TimeControl "1500+30"]

{[%evp 9,19,-3,40,-196,6,-158,50,-1066,-83,-1769,-112,-2582]} 1. f4 {[%emt 0:01:54]} f6 {[%emt 0:00:12]} 2. Nc3 {[%emt 0:02:45]} e5 {[%emt 0:01:21]} 3. fxe5 {[%emt 0:03:59]} fxe5 {[%emt 0:00:02]} 4. a4 {[%emt 0:00:03]} Nc6 {[%emt 0:00:33]} 5. e4 {[%emt 0:01:14]} Bb4 {[%emt 0:08:54] ...Bxc3 would now be deadly.} 6. b3 $2 {[%emt 0:08:22]} (6. Nf3 $14 {stays ahead.}) 6... a5 $2 {[%emt 0:07:54]} (6... Bxc3 $19 7. dxc3 Qh4+ 8. Ke2 Qxe4+ 9. Kf2 Qf5+ 10. Ke1 Nf6) 7. Ba3 $2 {[%emt 0:00:49] [#]} (7. Nf3 $11) 7... d5 $2 {[%emt 0:00:00] [#]} 8. d3 $2 {[%emt 0:05:19][%mdl 8192]} dxe4 $2 {[%emt 0:00:00]} (8... Bxc3+ $19 9. Kf2 dxe4) 9. d4 $2 {[%emt 0:03:40][%mdl 8192]} (9. Bxb4 $17 axb4 10. Nxe4) 9... e3 $2 {[%emt 0:10:05]} (9... Bxc3+ $19 {and Black stays clearly on top.} 10. Kf2 Qf6+ (10... Qxd4+ $2 11. Qxd4 Bxd4+ 12. Ke1 $19) (10... Bxd4+ $2 11. Ke1 $19) 11. Nf3 Bxd4+ (11... exf3 $2 12. Qxf3 Bxd4+ 13. Ke1 $19) 12. Ke1 exf3 13. Qxf3 Qxf3 (13... Bxa1 $2 14. Qg3 $19) 14. gxf3 Bxa1) 10. Qd2 $2 {[%emt 0:00:00][%mdl 8192] Weighted Error Value: White=2.86/Black=2.78.  Loses game:     	White=3     	---        Missed win:     	---       	Black=2      Mistake:       	White=1     	Black=1} 0-1